[Event "*** Titled Tuesday Blitz"]
[Site "Chess.com"]
[Date "2020.11.24"]
[Round "5"]
[White "Fusikk"]
[Black "FMalexhdez"]
[Result "0-1"]
[WhiteElo "2493"]
[BlackElo "2295"]
[TimeControl "180+1"]
[EndTime "11:12:57 PST"]
[Termination "FMalexhdez won by resignation"]

1. e4 {[%clk 0:02:58.4]} 1... c5 {[%clk 0:02:58.6]} 2. Ne2 {[%clk 0:02:58.2]}
2... d6 {[%clk 0:02:58.2]} 3. g3 {[%clk 0:02:56.8]} 3... g6 {[%clk 0:02:57.8]}
4. Bg2 {[%clk 0:02:56.2]} 4... Nc6 {[%clk 0:02:58.3]} 5. O-O {[%clk 0:02:53.9]}
5... Bg7 {[%clk 0:02:58.3]} 6. c3 {[%clk 0:02:53.1]} 6... e6 {[%clk 0:02:58.3]}
7. Na3 {[%clk 0:02:48.1]} 7... Nge7 {[%clk 0:02:58.4]} 8. Nc2 {[%clk 0:02:48.6]}
8... O-O {[%clk 0:02:57]} 9. d4 {[%clk 0:02:49]} 9... cxd4 {[%clk 0:02:56]} 10.
Ncxd4 {[%clk 0:02:49.5]} 10... d5 {[%clk 0:02:53.1]} 11. Be3 {[%clk 0:02:45.4]}
11... dxe4 {[%clk 0:02:51.4]} 12. Bxe4 {[%clk 0:02:43.3]} 12... e5 {[%clk
0:02:47]} 13. Nxc6 {[%clk 0:02:37.3]} 13... Nxc6 {[%clk 0:02:46.8]} 14. Qxd8
{[%clk 0:02:31.4]} 14... Rxd8 {[%clk 0:02:45.7]} 15. Rad1 {[%clk 0:02:32.3]}
15... Be6 {[%clk 0:02:38.2]} 16. b3 {[%clk 0:02:24.4]} 16... f5 {[%clk
0:02:30.1]} 17. Bg2 {[%clk 0:02:20.8]} 17... e4 {[%clk 0:02:27.7]} 18. c4 {[%clk
0:02:05.2]} 18... Ne5 {[%clk 0:02:18.7]} 19. Nf4 {[%clk 0:01:59.2]} 19... Bf7
{[%clk 0:02:15.4]} 20. Rxd8+ {[%clk 0:01:39.9]} 20... Rxd8 {[%clk 0:02:14.2]}
21. Bxa7 {[%clk 0:01:39.8]} 21... Ra8 {[%clk 0:02:10.7]} 22. Bd4 {[%clk
0:01:38.2]} 22... Rxa2 {[%clk 0:02:07.3]} 23. Bxe5 {[%clk 0:01:35.1]} 23... Bxe5
{[%clk 0:02:06.4]} 24. Rd1 {[%clk 0:01:18.6]} 24... Bxf4 {[%clk 0:01:49.5]} 25.
gxf4 {[%clk 0:01:16.1]} 25... Rb2 {[%clk 0:01:49.7]} 26. f3 {[%clk 0:01:15.9]}
26... exf3 {[%clk 0:01:17]} 27. Bxf3 {[%clk 0:01:13.5]} 27... Rxb3 {[%clk
0:01:17.5]} 28. Bd5 {[%clk 0:01:05.2]} 28... Bxd5 {[%clk 0:01:15.9]} 29. cxd5
{[%clk 0:01:05.2]} 29... Kf8 {[%clk 0:01:12]} 30. Kg2 {[%clk 0:00:58.7]} 30...
Ke7 {[%clk 0:01:11.4]} 31. h4 {[%clk 0:00:49]} 31... Kd6 {[%clk 0:01:00.3]} 32.
h5 {[%clk 0:00:46.9]} 32... Rb5 {[%clk 0:00:56.3]} 33. hxg6 {[%clk 0:00:42.1]}
33... hxg6 {[%clk 0:00:55.4]} 34. Kf3 {[%clk 0:00:35.8]} 34... Rxd5 {[%clk
0:00:54.9]} 35. Rg1 {[%clk 0:00:35.9]} 35... Kc5 {[%clk 0:00:47.2]} 36. Rxg6
{[%clk 0:00:34.4]} 36... b5 {[%clk 0:00:47.5]} 37. Ke3 {[%clk 0:00:34.2]} 37...
Kc4 {[%clk 0:00:41.8]} 38. Rc6+ {[%clk 0:00:32.1]} 38... Kb3 {[%clk 0:00:41.3]}
39. Re6 {[%clk 0:00:28.5]} 39... Kc4 {[%clk 0:00:36.5]} 40. Rc6+ {[%clk
0:00:23.3]} 40... Rc5 {[%clk 0:00:32.8]} 41. Rb6 {[%clk 0:00:21.6]} 41... b4
{[%clk 0:00:32.6]} 42. Kd2 {[%clk 0:00:21.8]} 42... Rb5 {[%clk 0:00:30.4]} 43.
Rc6+ {[%clk 0:00:19.8]} 43... Kd4 {[%clk 0:00:28.2]} 44. Kc2 {[%clk 0:00:17.2]}
44... b3+ {[%clk 0:00:23.3]} 45. Kb2 {[%clk 0:00:17]} 45... Rb4 {[%clk
0:00:22.2]} 46. Re6 {[%clk 0:00:15.6]} 46... Rb5 {[%clk 0:00:19.6]} 47. Re8
{[%clk 0:00:14.6]} 47... Kc4 {[%clk 0:00:17.9]} 48. Rd8 {[%clk 0:00:13]} 48...
Rd5 {[%clk 0:00:16.6]} 49. Rc8+ {[%clk 0:00:13.3]} 49... Kd3 {[%clk 0:00:12.2]}
50. Rc3+ {[%clk 0:00:12.7]} 50... Ke4 {[%clk 0:00:12]} 51. Kxb3 {[%clk
0:00:11.8]} 51... Kxf4 {[%clk 0:00:11.6]} 52. Kc2 {[%clk 0:00:11.1]} 52... Ke4
{[%clk 0:00:09.2]} 53. Rc4+ {[%clk 0:00:11.6]} 53... Ke3 {[%clk 0:00:08.8]} 54.
Rc3+ {[%clk 0:00:10.6]} 54... Ke2 {[%clk 0:00:08.4]} 55. Rc8 {[%clk 0:00:09.3]}
55... f4 {[%clk 0:00:08.6]} 56. Re8+ {[%clk 0:00:09.8]} 56... Kf2 {[%clk
0:00:07.3]} 57. Re7 {[%clk 0:00:07.5]} 57... f3 {[%clk 0:00:06.6]} 58. Re8
{[%clk 0:00:07]} 58... Kg2 {[%clk 0:00:06.4]} 59. Rg8+ {[%clk 0:00:07]} 59...
Kf1 {[%clk 0:00:06.4]} 60. Rg5 {[%clk 0:00:06.5]} 60... Rxg5 {[%clk 0:00:04.2]}
0-1

[Event "*** Titled Tuesday Blitz"]
[Site "Chess.com"]
[Date "2020.11.24"]
[Round "5"]
[White "Nikolakis2014"]
[Black "sunofadawn"]
[Result "1-0"]
[WhiteElo "2719"]
[BlackElo "2494"]
[TimeControl "180+1"]
[EndTime "11:12:59 PST"]
[Termination "Nikolakis2014 won by checkmate"]

1. Nf3 {[%clk 0:03:00.9]} 1... Nf6 {[%clk 0:02:58.2]} 2. c4 {[%clk 0:03:00.6]}
2... b6 {[%clk 0:02:57.7]} 3. g3 {[%clk 0:03:00.3]} 3... Bb7 {[%clk 0:02:58.2]}
4. Bg2 {[%clk 0:03:01]} 4... g6 {[%clk 0:02:58.7]} 5. O-O {[%clk 0:03:00.7]}
5... Bg7 {[%clk 0:02:59.3]} 6. d4 {[%clk 0:03:00.4]} 6... O-O {[%clk 0:02:59.9]}
7. d5 {[%clk 0:02:57]} 7... Ne4 {[%clk 0:02:57.8]} 8. Nfd2 {[%clk 0:02:56.3]}
8... Nc5 {[%clk 0:02:56]} 9. Qc2 {[%clk 0:02:51.9]} 9... a5 {[%clk 0:02:50.7]}
10. Nc3 {[%clk 0:02:41.2]} 10... d6 {[%clk 0:02:37.2]} 11. b3 {[%clk 0:02:38.4]}
11... c6 {[%clk 0:02:26.1]} 12. Bb2 {[%clk 0:02:36.5]} 12... cxd5 {[%clk
0:02:25.8]} 13. Nxd5 {[%clk 0:02:36.4]} 13... Bxb2 {[%clk 0:02:04.2]} 14. Qxb2
{[%clk 0:02:36]} 14... Nbd7 {[%clk 0:02:04.8]} 15. Rad1 {[%clk 0:02:28.6]} 15...
e6 {[%clk 0:02:03.6]} 16. Nc3 {[%clk 0:02:26.9]} 16... Bxg2 {[%clk 0:02:03]} 17.
Kxg2 {[%clk 0:02:27]} 17... Qc7 {[%clk 0:02:01.9]} 18. Nde4 {[%clk 0:02:24.8]}
18... d5 {[%clk 0:01:41.1]} 19. cxd5 {[%clk 0:02:21.2]} 19... Qe5 {[%clk
0:01:41]} 20. Nxc5 {[%clk 0:01:57.3]} 20... Nxc5 {[%clk 0:01:38.1]} 21. Qd2
{[%clk 0:01:53.5]} 21... exd5 {[%clk 0:01:17.9]} 22. Nxd5 {[%clk 0:01:47.2]}
22... Rad8 {[%clk 0:01:17.3]} 23. Qd4 {[%clk 0:01:35.7]} 23... Qxd4 {[%clk
0:01:00.5]} 24. Rxd4 {[%clk 0:01:34.4]} 24... Kg7 {[%clk 0:01:01.2]} 25. Rfd1
{[%clk 0:01:32.1]} 25... Rd6 {[%clk 0:00:58.9]} 26. e3 {[%clk 0:01:30.5]} 26...
Ne6 {[%clk 0:00:53.5]} 27. R4d2 {[%clk 0:01:26.4]} 27... Rfd8 {[%clk 0:00:52.1]}
28. e4 {[%clk 0:01:24.8]} 28... Nc5 {[%clk 0:00:45.1]} 29. f3 {[%clk 0:01:19.9]}
29... f5 {[%clk 0:00:45]} 30. exf5 {[%clk 0:01:17.1]} 30... Na6 {[%clk
0:00:32.7]} 31. Rd3 {[%clk 0:00:40.6]} 31... Nc5 {[%clk 0:00:32.4]} 32. R3d2
{[%clk 0:00:40.8]} 32... Na6 {[%clk 0:00:32.6]} 33. Rd4 {[%clk 0:00:19.7]} 33...
Nb4 {[%clk 0:00:19.6]} 34. Nf4 {[%clk 0:00:18.2]} 34... Rxd4 {[%clk 0:00:18.2]}
35. Rxd4 {[%clk 0:00:18.1]} 35... Rxd4 {[%clk 0:00:16]} 36. Ne6+ {[%clk
0:00:18.1]} 36... Kf6 {[%clk 0:00:16.9]} 37. Nxd4 {[%clk 0:00:18.5]} 37... Ke5
{[%clk 0:00:16.6]} 38. fxg6 {[%clk 0:00:18.2]} 38... hxg6 {[%clk 0:00:17.1]} 39.
Nb5 {[%clk 0:00:15.8]} 39... Nxa2 {[%clk 0:00:16.5]} 40. h4 {[%clk 0:00:16.4]}
40... Nc1 {[%clk 0:00:16.8]} 41. f4+ {[%clk 0:00:14.7]} 41... Ke4 {[%clk
0:00:16.4]} 42. Nd6+ {[%clk 0:00:14.8]} 42... Kd5 {[%clk 0:00:16.4]} 43. Nc4
{[%clk 0:00:14.5]} 43... Kc5 {[%clk 0:00:16.4]} 44. f5 {[%clk 0:00:13.7]} 44...
Nxb3 {[%clk 0:00:15.1]} 45. fxg6 {[%clk 0:00:12.8]} 45... Kxc4 {[%clk
0:00:12.6]} 46. g7 {[%clk 0:00:12.7]} 46... a4 {[%clk 0:00:13]} 47. g8=Q+ {[%clk
0:00:12.9]} 47... Kb4 {[%clk 0:00:13.9]} 48. Qf8+ {[%clk 0:00:12.2]} 48... Kc3
{[%clk 0:00:14.3]} 49. Qa3 {[%clk 0:00:12.7]} 49... b5 {[%clk 0:00:14.4]} 50. h5
{[%clk 0:00:13]} 50... Kc4 {[%clk 0:00:14.7]} 51. h6 {[%clk 0:00:12.6]} 51...
Nc5 {[%clk 0:00:14.4]} 52. Qc1+ {[%clk 0:00:12.1]} 52... Kb4 {[%clk 0:00:13.8]}
53. Qd2+ {[%clk 0:00:11.7]} 53... Kb3 {[%clk 0:00:13.2]} 54. Qe3+ {[%clk
0:00:11.1]} 54... Kc4 {[%clk 0:00:13.3]} 55. h7 {[%clk 0:00:11.7]} 55... b4
{[%clk 0:00:13.1]} 56. h8=Q {[%clk 0:00:11.8]} 56... a3 {[%clk 0:00:13.1]} 57.
Qhd4+ {[%clk 0:00:11.6]} 57... Kb5 {[%clk 0:00:13.6]} 58. Qxc5+ {[%clk
0:00:12.1]} 58... Ka4 {[%clk 0:00:14.3]} 59. Qed4 {[%clk 0:00:12.5]} 59... Kb3
{[%clk 0:00:13.3]} 60. Qdxb4+ {[%clk 0:00:12.4]} 60... Ka2 {[%clk 0:00:14.2]}
61. Qc2+ {[%clk 0:00:12.2]} 61... Ka1 {[%clk 0:00:13.5]} 62. Qbb1# {[%clk
0:00:12.8]} 1-0

[Event "*** Titled Tuesday Blitz"]
[Site "Chess.com"]
[Date "2020.11.24"]
[Round "5"]
[White "IceBelka"]
[Black "BillCoe"]
[Result "1-0"]
[WhiteElo "2324"]
[BlackElo "2067"]
[TimeControl "180+1"]
[EndTime "11:13:00 PST"]
[Termination "IceBelka won on time"]

1. e4 {[%clk 0:03:00.9]} 1... c5 {[%clk 0:02:59.9]} 2. Nf3 {[%clk 0:03:00.4]}
2... e6 {[%clk 0:03:00.5]} 3. d4 {[%clk 0:03:00.6]} 3... cxd4 {[%clk 0:03:01.4]}
4. Nxd4 {[%clk 0:03:01]} 4... a6 {[%clk 0:03:02.1]} 5. Bd3 {[%clk 0:03:00.8]}
5... Qc7 {[%clk 0:03:01.6]} 6. Qe2 {[%clk 0:02:53.5]} 6... d6 {[%clk 0:03:00.4]}
7. c4 {[%clk 0:02:51.2]} 7... Nf6 {[%clk 0:02:59.9]} 8. O-O {[%clk 0:02:49.5]}
8... Nc6 {[%clk 0:03:00.2]} 9. Nxc6 {[%clk 0:02:41.7]} 9... bxc6 {[%clk
0:03:01.1]} 10. Nc3 {[%clk 0:02:38.1]} 10... e5 {[%clk 0:03:00.5]} 11. Kh1
{[%clk 0:02:26.2]} 11... Be7 {[%clk 0:02:59.8]} 12. f3 {[%clk 0:02:16.3]} 12...
Be6 {[%clk 0:02:34.6]} 13. Be3 {[%clk 0:02:07]} 13... O-O {[%clk 0:02:27.5]} 14.
Rad1 {[%clk 0:02:04.7]} 14... d5 {[%clk 0:02:21.1]} 15. cxd5 {[%clk 0:01:57.5]}
15... cxd5 {[%clk 0:02:22]} 16. exd5 {[%clk 0:01:56.6]} 16... Nxd5 {[%clk
0:02:13.6]} 17. Nxd5 {[%clk 0:01:51.2]} 17... Bxd5 {[%clk 0:02:13.2]} 18. Bxh7+
{[%clk 0:01:49.8]} 18... Kxh7 {[%clk 0:02:14.1]} 19. Rxd5 {[%clk 0:01:49.6]}
19... Rfd8 {[%clk 0:02:03.5]} 20. Qd3+ {[%clk 0:01:44.2]} 20... Kg8 {[%clk
0:01:50.7]} 21. Rc1 {[%clk 0:01:40.6]} 21... Qb7 {[%clk 0:01:39]} 22. Rxd8+
{[%clk 0:01:33.4]} 22... Rxd8 {[%clk 0:01:37.5]} 23. Qc2 {[%clk 0:01:31.7]}
23... Qd5 {[%clk 0:01:26.6]} 24. a3 {[%clk 0:01:22.9]} 24... Bf6 {[%clk
0:01:18.4]} 25. h3 {[%clk 0:01:18.8]} 25... Bh4 {[%clk 0:01:10.1]} 26. Kg1
{[%clk 0:01:13.3]} 26... g6 {[%clk 0:01:01.7]} 27. Qe4 {[%clk 0:01:05.4]} 27...
Qxe4 {[%clk 0:00:55]} 28. fxe4 {[%clk 0:01:06.3]} 28... Rd3 {[%clk 0:00:53.2]}
29. Ba7 {[%clk 0:00:48.8]} 29... Bg5 {[%clk 0:00:45]} 30. Rc2 {[%clk 0:00:47.4]}
30... Bh4 {[%clk 0:00:37.6]} 31. Kf1 {[%clk 0:00:37.5]} 31... Rd1+ {[%clk
0:00:37]} 32. Ke2 {[%clk 0:00:37.6]} 32... Re1+ {[%clk 0:00:34.7]} 33. Kd3
{[%clk 0:00:37.3]} 33... Rd1+ {[%clk 0:00:33.3]} 34. Kc4 {[%clk 0:00:36.5]}
34... Be7 {[%clk 0:00:21.7]} 35. Be3 {[%clk 0:00:29.2]} 35... Re1 {[%clk
0:00:18]} 36. Kd3 {[%clk 0:00:28.7]} 36... Rd1+ {[%clk 0:00:14.6]} 37. Rd2
{[%clk 0:00:25.2]} 37... Rc1 {[%clk 0:00:12.8]} 38. Rc2 {[%clk 0:00:19.8]} 38...
Rd1+ {[%clk 0:00:13.1]} 39. Ke2 {[%clk 0:00:19.9]} 39... Rd7 {[%clk 0:00:12.7]}
40. b4 {[%clk 0:00:19.6]} 40... Kg7 {[%clk 0:00:13]} 41. Rb2 {[%clk 0:00:19.4]}
41... Rb7 {[%clk 0:00:12.5]} 42. Bd2 {[%clk 0:00:18.4]} 42... f6 {[%clk
0:00:11.5]} 43. a4 {[%clk 0:00:18.3]} 43... g5 {[%clk 0:00:11.2]} 44. b5 {[%clk
0:00:18.6]} 44... axb5 {[%clk 0:00:11.3]} 45. axb5 {[%clk 0:00:19.3]} 45... Bc5
{[%clk 0:00:10.4]} 46. Be3 {[%clk 0:00:19.6]} 46... Ba3 {[%clk 0:00:09.4]} 47.
Rb3 {[%clk 0:00:19.4]} 47... Bd6 {[%clk 0:00:08.8]} 48. Kd3 {[%clk 0:00:19.8]}
48... Bc7 {[%clk 0:00:08.7]} 49. Kc4 {[%clk 0:00:20]} 49... Bd8 {[%clk
0:00:08.3]} 50. Kd5 {[%clk 0:00:20.1]} 50... Rd7+ {[%clk 0:00:07.7]} 51. Kc6
{[%clk 0:00:20.3]} 51... Rc7+ {[%clk 0:00:07.7]} 52. Kd6 {[%clk 0:00:19.4]}
52... Rc2 {[%clk 0:00:07.3]} 53. g4 {[%clk 0:00:17.7]} 53... Rh2 {[%clk
0:00:06.2]} 54. Bc5 {[%clk 0:00:16.4]} 54... Rd2+ {[%clk 0:00:05.6]} 55. Kc6
{[%clk 0:00:16.2]} 55... Rc2 {[%clk 0:00:05]} 56. b6 {[%clk 0:00:16.4]} 56...
Be7 {[%clk 0:00:04.7]} 57. Rb5 {[%clk 0:00:16.6]} 57... Re2 {[%clk 0:00:02.5]}
58. b7 {[%clk 0:00:16.5]} 58... Bxc5 {[%clk 0:00:02.2]} 59. Rxc5 {[%clk
0:00:16.3]} 59... Rb2 {[%clk 0:00:02.7]} 60. Rb5 {[%clk 0:00:16.5]} 60... Rc2+
{[%clk 0:00:03.1]} 61. Kd6 {[%clk 0:00:16.8]} 61... Rd2+ {[%clk 0:00:02.7]} 62.
Ke7 {[%clk 0:00:16.2]} 1-0

[Event "*** Titled Tuesday Blitz"]
[Site "Chess.com"]
[Date "2020.11.24"]
[Round "5"]
[White "albi1999"]
[Black "woodhy"]
[Result "1/2-1/2"]
[WhiteElo "2593"]
[BlackElo "2438"]
[TimeControl "180+1"]
[EndTime "11:13:01 PST"]
[Termination "Game drawn by repetition"]

1. d4 {[%clk 0:03:00.9]} 1... Nf6 {[%clk 0:02:58.8]} 2. c4 {[%clk 0:03:01.4]}
2... e6 {[%clk 0:02:51.8]} 3. Nf3 {[%clk 0:02:58.7]} 3... b6 {[%clk 0:02:51.4]}
4. g3 {[%clk 0:02:59.2]} 4... Bb7 {[%clk 0:02:51.6]} 5. Bg2 {[%clk 0:02:59.6]}
5... Be7 {[%clk 0:02:52.1]} 6. O-O {[%clk 0:03:00.1]} 6... O-O {[%clk
0:02:52.8]} 7. Nc3 {[%clk 0:03:00.8]} 7... Ne4 {[%clk 0:02:53.2]} 8. Bd2 {[%clk
0:03:01.3]} 8... f5 {[%clk 0:02:53.1]} 9. Ne5 {[%clk 0:02:59.9]} 9... Nxc3
{[%clk 0:02:51.4]} 10. Bxc3 {[%clk 0:03:00.8]} 10... Bxg2 {[%clk 0:02:52.1]} 11.
Kxg2 {[%clk 0:03:01.7]} 11... d6 {[%clk 0:02:52.4]} 12. Nd3 {[%clk 0:03:01.9]}
12... Bf6 {[%clk 0:02:52.8]} 13. Nf4 {[%clk 0:02:54.3]} 13... Qe7 {[%clk
0:02:50.9]} 14. e3 {[%clk 0:02:42.8]} 14... Nd7 {[%clk 0:02:47.3]} 15. Qa4
{[%clk 0:02:34.2]} 15... Rfe8 {[%clk 0:02:39.3]} 16. Qc6 {[%clk 0:02:30.3]}
16... Nf8 {[%clk 0:02:36.3]} 17. e4 {[%clk 0:02:26.8]} 17... Qd7 {[%clk
0:02:32.9]} 18. Qxd7 {[%clk 0:02:15]} 18... Nxd7 {[%clk 0:02:33.8]} 19. Rfe1
{[%clk 0:01:48.9]} 19... Kf7 {[%clk 0:02:11.2]} 20. h4 {[%clk 0:01:35.4]} 20...
e5 {[%clk 0:01:40.4]} 21. dxe5 {[%clk 0:01:31.2]} 21... Bxe5 {[%clk 0:01:39.4]}
22. Bxe5 {[%clk 0:01:29.7]} 22... Rxe5 {[%clk 0:01:36.8]} 23. exf5 {[%clk
0:01:27.4]} 23... Rxf5 {[%clk 0:01:21.8]} 24. Nd5 {[%clk 0:01:26.4]} 24... c6
{[%clk 0:01:21.2]} 25. Re7+ {[%clk 0:01:18.5]} 25... Kf8 {[%clk 0:01:20.3]} 26.
Rxd7 {[%clk 0:01:16.8]} 26... cxd5 {[%clk 0:01:21.2]} 27. cxd5 {[%clk
0:01:07.7]} 27... Rxd5 {[%clk 0:01:22.1]} 28. Re1 {[%clk 0:01:04.7]} 28... Re5
{[%clk 0:01:20.1]} 29. Rc1 {[%clk 0:00:56.2]} 29... Re7 {[%clk 0:01:17.7]} 30.
Rcc7 {[%clk 0:00:51.3]} 30... Rxd7 {[%clk 0:01:16.2]} 31. Rxd7 {[%clk
0:00:52.2]} 31... Rc8 {[%clk 0:01:09.3]} 32. Rxa7 {[%clk 0:00:51.2]} 32... Rc2
{[%clk 0:01:08.2]} 33. b4 {[%clk 0:00:46.6]} 33... Rb2 {[%clk 0:01:04.5]} 34. a3
{[%clk 0:00:45.3]} 34... d5 {[%clk 0:01:04.2]} 35. Rd7 {[%clk 0:00:42.4]} 35...
Rb3 {[%clk 0:01:03.4]} 36. Rxd5 {[%clk 0:00:42.1]} 36... Rxa3 {[%clk 0:01:03.7]}
37. Rd6 {[%clk 0:00:42.1]} 37... Rb3 {[%clk 0:01:00.6]} 38. Rxb6 {[%clk
0:00:41.9]} 38... h5 {[%clk 0:01:00]} 39. Rb7 {[%clk 0:00:35.8]} 39... Kg8
{[%clk 0:00:56.8]} 40. b5 {[%clk 0:00:36.1]} 40... Kh7 {[%clk 0:00:57.3]} 41. b6
{[%clk 0:00:35.4]} 41... Kg6 {[%clk 0:00:57.6]} 42. Rb8 {[%clk 0:00:35.7]} 42...
Kf6 {[%clk 0:00:53.3]} 43. Kf1 {[%clk 0:00:34.9]} 43... Rb2 {[%clk 0:00:52.1]}
44. Ke1 {[%clk 0:00:34.9]} 44... Kf5 {[%clk 0:00:51]} 45. b7 {[%clk 0:00:28.9]}
45... Kg6 {[%clk 0:00:47.6]} 46. Kd1 {[%clk 0:00:29]} 46... Kh7 {[%clk
0:00:42.2]} 47. Kc1 {[%clk 0:00:28.8]} 47... Rb6 {[%clk 0:00:42.2]} 48. Kc2
{[%clk 0:00:29.1]} 48... Kg6 {[%clk 0:00:42.3]} 49. Kd3 {[%clk 0:00:28.6]} 49...
Rb1 {[%clk 0:00:40.9]} 50. f3 {[%clk 0:00:28.9]} 50... Kh7 {[%clk 0:00:38.2]}
51. g4 {[%clk 0:00:29]} 51... hxg4 {[%clk 0:00:37.9]} 52. fxg4 {[%clk
0:00:29.9]} 52... Kg6 {[%clk 0:00:38.3]} 53. Ke4 {[%clk 0:00:30.2]} 53... Kh7
{[%clk 0:00:36.8]} 54. Ke5 {[%clk 0:00:30.5]} 54... Kg6 {[%clk 0:00:35.4]} 55.
h5+ {[%clk 0:00:29.6]} 55... Kh7 {[%clk 0:00:35]} 56. g5 {[%clk 0:00:28.9]}
56... g6 {[%clk 0:00:28.3]} 57. h6 {[%clk 0:00:19.2]} 57... Rb6 {[%clk
0:00:26.3]} 58. Kd5 {[%clk 0:00:17.2]} 58... Rd6+ {[%clk 0:00:23]} 59. Kc4
{[%clk 0:00:13.3]} 59... Rc6+ {[%clk 0:00:22.6]} 60. Kd3 {[%clk 0:00:13.4]}
60... Rd6+ {[%clk 0:00:22.7]} 61. Ke4 {[%clk 0:00:13.7]} 61... Re6+ {[%clk
0:00:22.8]} 62. Kf4 {[%clk 0:00:14.3]} 62... Re4+ {[%clk 0:00:22.3]} 63. Kf3
{[%clk 0:00:14]} 63... Re3+ {[%clk 0:00:23]} 64. Kf2 {[%clk 0:00:14.5]} 64...
Re2+ {[%clk 0:00:23.1]} 65. Kf1 {[%clk 0:00:14.9]} 65... Re1+ {[%clk 0:00:23.5]}
66. Kg2 {[%clk 0:00:15.6]} 66... Re2+ {[%clk 0:00:23.1]} 67. Kf3 {[%clk
0:00:16.5]} 67... Re3+ {[%clk 0:00:22.6]} 68. Kf4 {[%clk 0:00:17.4]} 68... Re4+
{[%clk 0:00:22.7]} 69. Kf3 {[%clk 0:00:17.9]} 69... Re3+ {[%clk 0:00:22.9]}
1/2-1/2

[Event "*** Titled Tuesday Blitz"]
[Site "Chess.com"]
[Date "2020.11.24"]
[Round "5"]
[White "frequentblunders"]
[Black "svilson23"]
[Result "1/2-1/2"]
[WhiteElo "2052"]
[BlackElo "2241"]
[TimeControl "180+1"]
[EndTime "11:13:01 PST"]
[Termination "Game drawn - insufficient material"]

1. e4 {[%clk 0:02:58.7]} 1... c5 {[%clk 0:02:58.7]} 2. c3 {[%clk 0:02:58.7]}
2... d5 {[%clk 0:02:56.9]} 3. exd5 {[%clk 0:02:59.6]} 3... Nf6 {[%clk
0:02:57.4]} 4. Nf3 {[%clk 0:02:58.2]} 4... Nxd5 {[%clk 0:02:55.8]} 5. d4 {[%clk
0:02:57.9]} 5... Nc6 {[%clk 0:02:55.3]} 6. Bb5 {[%clk 0:02:57.3]} 6... Bg4
{[%clk 0:02:50.9]} 7. O-O {[%clk 0:02:57]} 7... cxd4 {[%clk 0:02:46.8]} 8. Qa4
{[%clk 0:02:36.5]} 8... Bd7 {[%clk 0:02:34.1]} 9. Nxd4 {[%clk 0:02:21]} 9...
Nxd4 {[%clk 0:02:34]} 10. Bxd7+ {[%clk 0:02:17.5]} 10... Qxd7 {[%clk 0:02:33.5]}
11. Qxd7+ {[%clk 0:02:10.3]} 11... Kxd7 {[%clk 0:02:34.4]} 12. cxd4 {[%clk
0:02:10.5]} 12... Nb4 {[%clk 0:02:21.6]} 13. Nc3 {[%clk 0:02:07.9]} 13... e6
{[%clk 0:02:21.3]} 14. Bf4 {[%clk 0:02:03.2]} 14... Bd6 {[%clk 0:02:15.1]} 15.
Bxd6 {[%clk 0:01:57.3]} 15... Kxd6 {[%clk 0:02:16]} 16. Rfd1 {[%clk 0:01:53.2]}
16... Rac8 {[%clk 0:02:08.8]} 17. Nb5+ {[%clk 0:01:50.5]} 17... Kd5 {[%clk
0:02:06.9]} 18. Nxa7 {[%clk 0:01:44.9]} 18... Rc2 {[%clk 0:02:07]} 19. a3 {[%clk
0:01:43]} 19... Na6 {[%clk 0:01:59.7]} 20. b4 {[%clk 0:01:31.7]} 20... Nc7
{[%clk 0:01:28.2]} 21. Rac1 {[%clk 0:01:29.4]} 21... Rxc1 {[%clk 0:01:28.4]} 22.
Rxc1 {[%clk 0:01:29.7]} 22... Kd6 {[%clk 0:01:27.6]} 23. a4 {[%clk 0:01:11.2]}
23... Ra8 {[%clk 0:01:25.7]} 24. Nb5+ {[%clk 0:01:09.1]} 24... Nxb5 {[%clk
0:01:26.3]} 25. axb5 {[%clk 0:01:09.9]} 25... Ra4 {[%clk 0:01:25.7]} 26. Rb1
{[%clk 0:01:05.2]} 26... Kd5 {[%clk 0:01:24.9]} 27. g3 {[%clk 0:01:00.1]} 27...
b6 {[%clk 0:01:00.8]} 28. Kg2 {[%clk 0:00:57]} 28... Kxd4 {[%clk 0:00:59.7]} 29.
Rd1+ {[%clk 0:00:55.3]} 29... Kc4 {[%clk 0:01:00.2]} 30. Rd7 {[%clk 0:00:48.7]}
30... Rxb4 {[%clk 0:00:55.5]} 31. Rxf7 {[%clk 0:00:48.4]} 31... Rxb5 {[%clk
0:00:55.8]} 32. Rxg7 {[%clk 0:00:47.9]} 32... h5 {[%clk 0:00:56.1]} 33. Re7
{[%clk 0:00:44.2]} 33... e5 {[%clk 0:00:50.3]} 34. Kf3 {[%clk 0:00:38.6]} 34...
Kd4 {[%clk 0:00:46.1]} 35. Rd7+ {[%clk 0:00:35.7]} 35... Rd5 {[%clk 0:00:46.6]}
36. Rb7 {[%clk 0:00:30.2]} 36... b5 {[%clk 0:00:47.2]} 37. h4 {[%clk 0:00:28.7]}
37... Kc3 {[%clk 0:00:46.2]} 38. Ke4 {[%clk 0:00:28]} 38... Rc5 {[%clk
0:00:46.6]} 39. Kf5 {[%clk 0:00:26.2]} 39... b4 {[%clk 0:00:47]} 40. Kg6 {[%clk
0:00:26.2]} 40... b3 {[%clk 0:00:46.8]} 41. Kxh5 {[%clk 0:00:26.1]} 41... b2
{[%clk 0:00:42.1]} 42. Kg6 {[%clk 0:00:25.6]} 42... Kc2 {[%clk 0:00:40.4]} 43.
h5 {[%clk 0:00:24.8]} 43... b1=Q {[%clk 0:00:40]} 44. Rxb1 {[%clk 0:00:25.3]}
44... Kxb1 {[%clk 0:00:39.6]} 45. h6 {[%clk 0:00:25.5]} 45... Kc2 {[%clk
0:00:39.4]} 46. h7 {[%clk 0:00:24.6]} 46... Rc8 {[%clk 0:00:39.8]} 47. g4 {[%clk
0:00:24.5]} 47... Kd3 {[%clk 0:00:32.7]} 48. g5 {[%clk 0:00:19.3]} 48... Ke4
{[%clk 0:00:25.9]} 49. Kf6 {[%clk 0:00:17.5]} 49... Rc6+ {[%clk 0:00:16.9]} 50.
Kf7 {[%clk 0:00:17.9]} 50... Rc7+ {[%clk 0:00:17.1]} 51. Kg8 {[%clk 0:00:17.9]}
51... Kf5 {[%clk 0:00:14.8]} 52. h8=Q {[%clk 0:00:17.1]} 52... Rc8+ {[%clk
0:00:14.1]} 53. Kg7 {[%clk 0:00:17.8]} 53... Rxh8 {[%clk 0:00:14.2]} 54. Kxh8
{[%clk 0:00:18.7]} 54... Kxg5 {[%clk 0:00:13.3]} 55. Kg7 {[%clk 0:00:19]} 55...
e4 {[%clk 0:00:06.3]} 56. Kf7 {[%clk 0:00:18.6]} 56... Kf5 {[%clk 0:00:04.8]}
57. Ke7 {[%clk 0:00:18.8]} 57... Ke5 {[%clk 0:00:05.1]} 58. Kf7 {[%clk
0:00:18.9]} 58... Kf4 {[%clk 0:00:03.2]} 59. Kf6 {[%clk 0:00:18.9]} 59... Kf3
{[%clk 0:00:02.2]} 60. Ke5 {[%clk 0:00:18.9]} 60... Kxf2 {[%clk 0:00:02.9]} 61.
Kxe4 {[%clk 0:00:19.3]} 1/2-1/2